[Event "Chinese League Div-A Rapid 2022"]
[Site "Fuling,Chongqing"]
[Date "2022.09.16"]
[Round "9.2"]
[White "Xu, Yi"]
[Black "Wang, Hao B"]
[Result "1/2-1/2"]
[ECO "B90"]
[WhiteElo "2507"]
[BlackElo "2165"]
[Annotator "TA"]
[PlyCount "162"]
[EventDate "2022.09.07"]
[EventType "team-tourn"]
[EventCountry "CHN"]
[SourceTitle "playchess.com"]
[Source "ChessBase"]
[SourceQuality "1"]
[TimeControl "1500+10"]

{[%evp 11,162,19,48,33,44,47,37,29,33,39,53,37,70,66,129,130,161,141,172,134,185,184,189,194,191,181,205,102,146,146,197,98,98,91,98,83,86,86,75,54,89,91,101,77,111,121,122,110,124,98,151,112,147,156,170,159,166,110,127,129,124,128,162,81,94,77,74,77,77,92,113,98,105,54,99,95,97,100,132,81,71,78,94,79,88,72,325,324,444,314,525,-2,-2,-2,-2,-8,-8,-42,-8,-119,-77,-77,-77,-77,-77,-78,-77,-77,-77,-77,-77,-92,0,-44,-16,-24,-41,-167,-77,-77,-77,-79,-66,-69,-62,-62,-62,-77,-77,-77,-77,-77,-70,-77,-77,-77,0,-77,-62,-77,-77,-70,-67,-77,-77,-77,-77,-77,-62,-77,-8,-8,-8]} 1. e4 {[%emt 0:00:02]} c5 {[%emt 0:00:02]} 2. Nf3 {[%emt 0:00:01][%cal Bg1f3,Bf3d4,Bd4e2,Be2g3][%mdl 32]} d6 {[%emt 0:00:01]} 3. d4 {[%emt 0:00:01]} cxd4 {[%emt 0:00:02]} 4. Nxd4 {[%emt 0:00:01]} Nf6 {[%emt 0:00:02]} 5. Nc3 {[%emt 0:00:02]} a6 {[%emt 0:00:01]} 6. h3 {[%emt 0:00:03]} Nc6 {[%emt 0:00:11]} 7. g4 {[%emt 0:00:06] B90: Sicilian Najdorf: Unusual White 6th moves, 6 Be3 Ng4 and 6 Be3 e5.} e5 {[%emt 0:00:01]} 8. Nde2 {[%emt 0:00:06]} Be7 {[%emt 0:00:33]} 9. Bg2 {[%emt 0:00:09] White is slightly better.} O-O {[%emt 0:00:20]} 10. Be3 {[%emt 0:00:13]} Be6 {[%emt 0:01:26]} 11. Ng3 {[%emt 0:00:36] [#]} Re8 $146 {[%emt 0:00:31]} ({Predecessor:} 11... Ne8 12. Qd2 h6 13. Nd5 Bg5 14. Nf5 Bxd5 15. Bxg5 Qxg5 16. Qxg5 hxg5 17. exd5 Na7 {0-1 (37) Osmanodja,F (2326)-Petriashvili,N (2465) Skopje 2019}) 12. Nd5 {[%emt 0:01:08]} Bxd5 {[%emt 0:00:59]} (12... Nd7 $14) 13. exd5 $16 {[%emt 0:00:02]} Nb8 {[%emt 0:00:06]} 14. Qd2 {[%emt 0:00:49] Prevents Qa5.} Qc7 {[%emt 0:01:05]} (14... Nbd7 $2 15. g5) 15. O-O-O {[%emt 0:00:32]} a5 {[%emt 0:00:14]} (15... Nfd7 $16 {is a better defense.}) 16. Kb1 $18 {[%emt 0:01:20]} Na6 {[%emt 0:00:02]} 17. g5 {[%emt 0:00:05]} Nd7 {[%emt 0:00:06]} 18. h4 {[%emt 0:00:13]} Nb6 {[%emt 0:00:27]} 19. Qxa5 {[%emt 0:02:18]} (19. b3 $18) 19... Nc5 {[%emt 0:00:16]} 20. Qb5 {[%emt 0:00:29]} Nbd7 {[%emt 0:00:02]} (20... Nba4 $16 {might work better.} 21. f4 Nd7 22. fxe5 Nxe5) 21. Bxc5 {[%emt 0:01:32]} (21. Bd2 $18 {is more deadly.}) 21... Nxc5 $16 {[%emt 0:00:03]} 22. Ne4 {[%emt 0:00:07]} Rec8 {[%emt 0:01:15]} 23. Nxc5 {[%emt 0:00:31] White is more active.} (23. a3 {looks sharper.} Nxe4 24. Bxe4 Qc4 25. Qxc4 Rxc4 26. f3) 23... Qxc5 {[%emt 0:00:05]} 24. Qxc5 {[%emt 0:00:12]} Rxc5 {[%emt 0:00:01]} 25. Be4 {[%emt 0:00:55]} Ra4 {[%emt 0:01:00]} 26. f3 {[%emt 0:00:03]} b5 {[%emt 0:00:24]} 27. a3 {[%emt 0:00:42]} Bd8 {[%emt 0:00:09]} 28. c3 {[%emt 0:00:17]} Rc8 {[%emt 0:00:45]} 29. Kc2 {[%emt 0:00:31]} g6 {[%emt 0:00:25]} 30. Ra1 {[%emt 0:02:25]} Kg7 {[%emt 0:00:43]} (30... Rd4 $142) 31. Bd3 {[%emt 0:00:38]} Rb8 {[%emt 0:00:56]} 32. b4 $1 {[%emt 0:00:18]} Ra7 {[%emt 0:00:50]} 33. Kb3 {[%emt 0:00:07]} Rc7 {[%emt 0:00:18]} 34. a4 {[%emt 0:03:41]} (34. Ra2 $18) 34... Rbc8 {[%emt 0:00:02]} 35. Rhc1 {[%emt 0:00:07]} (35. Bxb5 $6 Rxc3+ 36. Ka2 Rc2+ 37. Kb1 R2c3 $11) 35... bxa4+ {[%emt 0:00:02]} 36. Rxa4 {[%emt 0:00:02]} h6 {[%emt 0:00:01] [#]} 37. Ba6 {[%emt 0:01:00]} ({White should play} 37. gxh6+ $1 $18 Kxh6 38. Ra6) 37... Ra8 {[%emt 0:00:35]} 38. Rg1 {[%emt 0:01:42]} Rca7 {[%emt 0:00:06]} 39. Bb5 {[%emt 0:01:22]} Rxa4 {[%emt 0:00:12]} 40. Bxa4 {[%emt 0:00:02]} hxg5 {[%emt 0:00:15]} 41. hxg5 {[%emt 0:00:02][%mdl 4096] Endgame KRB-KRB} ({Don't play} 41. Bc6 Bb6 42. Bxa8 (42. Rxg5 Rh8 $14) 42... Bxg1 43. hxg5 Be3) 41... Bb6 {[%emt 0:00:03]} 42. Rg2 {[%emt 0:00:14]} ({Better is} 42. Re1 $16) 42... Rh8 {[%emt 0:00:12]} 43. Kc4 {[%emt 0:00:35]} Be3 {[%emt 0:00:53]} 44. Kd3 {[%emt 0:00:20]} Bf4 {[%emt 0:00:03]} 45. b5 {[%emt 0:02:04]} (45. Bd7 $142) 45... Rb8 {[%emt 0:00:17]} 46. c4 {[%emt 0:00:54][%cal Oc4c5]} Kf8 {[%emt 0:00:03]} 47. c5 {[%emt 0:01:22]} dxc5 {[%emt 0:00:36]} 48. Kc4 {[%emt 0:00:01]} Be3 $2 {[%emt 0:00:24][%mdl 8192]} (48... Ra8 $16) 49. d6 $18 {[%emt 0:00:19]} Rb6 {[%emt 0:00:39]} 50. Kd5 {[%emt 0:00:03]} Ke8 $2 {[%emt 0:00:25]} (50... c4 51. Rc2 (51. Kxe5 c3 $16) 51... Bf4 52. Rxc4 e4 53. Rc8+ (53. Rxe4 Bxd6 54. Rc4 Bg3 $16) (53. fxe4 Rxd6+ 54. Kc5 Re6 $14) 53... Kg7) 51. f4 $2 {[%emt 0:01:54]} (51. Re2 $18 Bg1 52. f4) 51... exf4 $11 {[%emt 0:00:11]} 52. Bd1 {[%emt 0:00:15]} c4 {[%emt 0:00:22]} 53. Rb2 {[%emt 0:01:08]} c3 {[%emt 0:00:22]} 54. Rb4 {[%emt 0:00:02]} c2 {[%emt 0:00:06]} 55. Re4+ {[%emt 0:00:22]} (55. Bxc2 $11 Kd7 56. Rb3) 55... Kd8 {[%emt 0:00:12]} 56. Bxc2 {[%emt 0:00:05] Black must now prevent Bd3.} Rxb5+ {[%emt 0:00:04]} 57. Kc4 {[%emt 0:00:05]} Rc5+ {[%emt 0:00:07]} (57... Rxg5 $2 58. Ba4 Rc5+ 59. Kb4 $18) 58. Kd3 {[%emt 0:00:15]} Rd5+ {[%emt 0:00:04]} 59. Kc4 {[%emt 0:00:08]} Rxd6 {[%emt 0:00:02]} 60. Ba4 {[%emt 0:00:02] Prevents Rc6+.} Ra6 {[%emt 0:00:48]} 61. Kd3 {[%emt 0:00:20]} Rd6+ {[%emt 0:00:06]} (61... Kc7 $17 62. Bb3 Ra3) 62. Kc4 $1 $15 {[%emt 0:00:03]} f6 {[%emt 0:00:06]} 63. gxf6 {[%emt 0:00:17]} Rxf6 {[%emt 0:00:02][%cal Of4f3] Threatens to win with ...f3!} 64. Kd3 {[%emt 0:00:08]} (64. Kd5 $15) 64... g5 {[%emt 0:00:08]} (64... Rd6+ $19 {has better winning chances.} 65. Kc4 g5 66. Re8+ Kc7 67. Re7+ Kb6) 65. Re8+ $17 {[%emt 0:00:08]} Kc7 {[%emt 0:00:02]} 66. Rg8 {[%emt 0:00:02]} Rf5 {[%emt 0:00:15]} 67. Ke4 {[%emt 0:00:13] Inhibits Re5+.} Rc5 {[%emt 0:00:03] aiming for ...Rc4+.} 68. Bd1 {[%emt 0:00:04]} Bf2 {[%emt 0:00:44]} 69. Bg4 {[%emt 0:00:04] [#]} Ra5 $1 {[%emt 0:00:18]} 70. Rg7+ {[%emt 0:00:16]} Kd6 {[%emt 0:00:03]} 71. Rd7+ {[%emt 0:00:05]} Kc6 {[%emt 0:00:04]} 72. Rd2 {[%emt 0:00:13]} Bh4 {[%emt 0:00:21]} 73. Rd3 {[%emt 0:00:08]} Bf2 {[%emt 0:00:10]} 74. Rd2 $1 {[%emt 0:00:05]} Bc5 {[%emt 0:00:16]} 75. Rd3 {[%emt 0:00:16]} Bd6 {[%emt 0:00:06]} 76. Rc3+ {[%emt 0:00:06]} Kb6 {[%emt 0:00:09]} 77. Rd3 {[%emt 0:00:06]} Re5+ {[%emt 0:00:06]} 78. Kf3 {[%emt 0:00:01]} Bc5 {[%emt 0:00:07]} 79. Bh5 {[%emt 0:00:28]} Re1 {[%emt 0:00:20]} 80. Kg4 {[%emt 0:00:14]} Be3 {[%emt 0:00:27]} (80... Be7 $17 81. Kf5 Rh1) 81. Kf5 $11 {[%emt 0:00:25]} Kc5 {[%emt 0:00:14] White really could win this.  Weighted Error Value: White=0.33/Black=0.31} 1/2-1/2

[Event "Chinese League Div-A Rapid 2022"]
[Site "Fuling,Chongqing"]
[Date "2022.09.16"]
[Round "9.3"]
[White "Lou, Yiping"]
[Black "Ma, Zhonghan"]
[Result "1/2-1/2"]
[ECO "A11"]
[WhiteElo "2485"]
[BlackElo "2485"]
[Annotator "TA"]
[PlyCount "65"]
[EventDate "2022.09.07"]
[EventType "team-tourn"]
[EventCountry "CHN"]
[SourceTitle "playchess.com"]
[Source "ChessBase"]
[SourceQuality "1"]
[TimeControl "1500+10"]

{[%evp 11,65,25,31,20,30,17,18,19,26,22,17,21,9,31,25,27,33,29,38,24,37,23,35,44,56,38,37,53,30,19,60,52,52,61,42,19,18,10,10,8,11,8,7,3,4,1,7,0,8,0,0,0,0,0,0,0]} 1. Nf3 {[%emt 0:00:01]} Nf6 {[%emt 0:00:27]} 2. g3 {[%emt 0:00:11]} d5 {[%emt 0:00:25]} 3. Bg2 {[%emt 0:00:03]} c6 {[%emt 0:00:16]} 4. O-O {[%emt 0:00:03]} Bf5 {[%emt 0:00:07]} 5. c4 {[%emt 0:00:19]} e6 {[%emt 0:00:17]} 6. Qb3 {[%emt 0:00:15]} Qb6 {[%emt 0:00:08]} 7. d3 {[%emt 0:00:18] A11: English Opening: 1...c6.} Nbd7 {[%emt 0:00:29]} 8. cxd5 {[%emt 0:00:12]} exd5 {[%emt 0:01:21]} 9. Qc2 {[%emt 0:00:52][%cal Oe2e4]} Qc5 {[%emt 0:03:17]} 10. Qd1 {[%emt 0:00:39]} Be7 {[%emt 0:00:08]} 11. Nc3 {[%emt 0:00:49] [#]} O-O $146 {[%emt 0:00:04]} ({Predecessor:} 11... Rd8 12. Be3 Qa5 13. a3 a6 14. b4 Qc7 15. Bf4 Bd6 16. Bxd6 Qxd6 17. e4 Bg4 18. exd5 Nxd5 {½-½ (37) Tomashevsky,E (2710)-Vallejo Pons,F (2717) Tbilisi 2017}) 12. e4 {[%emt 0:00:41]} dxe4 {[%emt 0:00:53]} 13. dxe4 {[%emt 0:00:21]} Bg4 {[%emt 0:01:30]} 14. h3 {[%emt 0:03:10]} Bxf3 {[%emt 0:03:13]} 15. Qxf3 {[%emt 0:00:03]} Rad8 {[%emt 0:00:10]} 16. Qe2 {[%emt 0:02:12]} Ne5 {[%emt 0:00:53]} 17. Be3 {[%emt 0:00:56][%cal Bc1e3,Be3d4,Bd4c3][%mdl 32]} Qc4 {[%emt 0:03:29]} 18. Rad1 {[%emt 0:03:52]} Qxe2 {[%emt 0:00:25]} 19. Nxe2 {[%emt 0:00:02]} Nc4 {[%emt 0:00:16]} 20. Bd4 {[%emt 0:01:55]} c5 {[%emt 0:01:58]} 21. Bc3 {[%emt 0:00:10]} b5 {[%emt 0:00:02]} 22. e5 {[%emt 0:03:41] [#] And now b3 would win.} Nd7 {[%emt 0:00:02]} 23. Bc6 {[%emt 0:01:01] This bishop pair is nice.} b4 {[%emt 0:01:10] The position is equal.} 24. Bxd7 {[%emt 0:00:36] Strongly threatening Bb5.} bxc3 {[%emt 0:00:03]} 25. Nxc3 {[%emt 0:00:04]} Nxb2 {[%emt 0:01:55]} 26. Rd5 {[%emt 0:00:08]} Nc4 {[%emt 0:00:12]} 27. Bb5 {[%emt 0:01:40]} Nb6 {[%emt 0:00:21]} 28. Rxd8 {[%emt 0:00:13]} Rxd8 {[%emt 0:00:01]} 29. a4 {[%emt 0:00:03]} c4 {[%emt 0:02:27]} 30. a5 {[%emt 0:00:31]} Nd5 {[%emt 0:00:01]} 31. Nxd5 {[%emt 0:00:17]} Rxd5 {[%emt 0:00:02]} 32. Bxc4 {[%emt 0:00:02]} Rxa5 {[%emt 0:01:52]} 33. Rb1 {[%emt 0:01:43] Weighted Error Value: White=0.05 (flawless) /Black=0.04 (flawless)} 1/2-1/2

[Event "Chinese League Div-A Rapid 2022"]
[Site "Fuling,Chongqing"]
[Date "2022.09.16"]
[Round "9.4"]
[White "Shao, Qiyu"]
[Black "Ju, Wenjun"]
[Result "0-1"]
[ECO "A21"]
[WhiteElo "1467"]
[BlackElo "2560"]
[Annotator "ChessBase"]
[PlyCount "70"]
[EventDate "2022.09.07"]
[EventType "team-tourn"]
[EventCountry "CHN"]
[SourceTitle "playchess.com"]
[Source "ChessBase"]
[SourceQuality "1"]
[TimeControl "1500+10"]

1. c4 {[%emt 0:00:02]} e5 {[%emt 0:00:01]} 2. Nc3 {[%emt 0:00:02]} Bb4 {[%emt 0:00:02]} 3. g3 {[%emt 0:00:04]} Bxc3 {[%emt 0:00:03]} 4. bxc3 {[%emt 0:00:04]} d6 {[%emt 0:00:10]} 5. Bg2 {[%emt 0:00:04]} Nc6 {[%emt 0:00:03]} 6. e4 {[%emt 0:00:20]} Nge7 {[%emt 0:00:22]} 7. Ne2 {[%emt 0:00:03]} f5 {[%emt 0:00:10]} 8. d3 {[%emt 0:00:03]} O-O {[%emt 0:00:11]} 9. O-O {[%emt 0:00:03]} fxe4 {[%emt 0:00:29]} 10. dxe4 {[%emt 0:00:06]} Be6 {[%emt 0:00:31]} 11. Qa4 {[%emt 0:01:14]} b6 {[%emt 0:02:27]} 12. f4 {[%emt 0:02:00]} Na5 {[%emt 0:00:13]} 13. c5 {[%emt 0:01:13]} dxc5 {[%emt 0:00:26]} 14. f5 {[%emt 0:00:53]} Bc4 {[%emt 0:00:09]} 15. Rf2 {[%emt 0:03:06]} Nec6 {[%emt 0:02:56]} 16. h4 {[%emt 0:02:17]} b5 {[%emt 0:00:40]} 17. Qc2 {[%emt 0:00:04]} Qd3 {[%emt 0:02:23]} 18. Qxd3 {[%emt 0:00:05]} Bxd3 {[%emt 0:00:01]} 19. Be3 {[%emt 0:00:40]} Nb7 {[%emt 0:00:05]} 20. Nc1 {[%emt 0:00:38]} Bc4 {[%emt 0:00:06]} 21. Nb3 {[%emt 0:00:15]} Bxb3 {[%emt 0:03:49]} 22. axb3 {[%emt 0:00:02]} Nca5 {[%emt 0:01:51]} 23. Rb2 {[%emt 0:01:50]} c4 {[%emt 0:00:22]} 24. b4 {[%emt 0:01:17]} Nb3 {[%emt 0:01:36]} 25. Rxa7 {[%emt 0:01:47]} Rxa7 {[%emt 0:00:01]} 26. Bxa7 {[%emt 0:00:02]} Rd8 {[%emt 0:00:01]} 27. Kh2 {[%emt 0:01:32]} h5 {[%emt 0:00:50]} 28. Rf2 {[%emt 0:04:37]} c5 {[%emt 0:01:18]} 29. Bb6 {[%emt 0:04:28]} Rd3 {[%emt 0:02:42]} 30. bxc5 {[%emt 0:00:23]} N7xc5 {[%emt 0:00:03]} 31. Rf3 {[%emt 0:00:31]} Rd2 {[%emt 0:01:36]} 32. Re3 {[%emt 0:00:24]} Nd3 {[%emt 0:00:19]} 33. Bc7 {[%emt 0:00:12]} b4 {[%emt 0:00:20]} 34. cxb4 {[%emt 0:00:16]} c3 {[%emt 0:00:01]} 35. Bxe5 {[%emt 0:00:03]} c2 {[%emt 0:00:03]} 0-1

[Event "Chinese League Div-A Rapid 2022"]
[Site "Fuling,Chongqing"]
[Date "2022.09.16"]
[Round "9.5"]
[White "Sun, Fanghui"]
[Black "Ning, Kaiyu"]
[Result "1-0"]
[ECO "B94"]
[WhiteElo "2182"]
[BlackElo "2374"]
[Annotator "TA"]
[PlyCount "61"]
[EventDate "2022.09.07"]
[EventType "team-tourn"]
[EventCountry "CHN"]
[SourceTitle "playchess.com"]
[Source "ChessBase"]
[SourceQuality "1"]
[TimeControl "1500+10"]

{[%evp 12,61,12,17,22,25,10,0,0,0,-1,-21,-10,-22,-22,-38,-29,-26,-15,-43,22,31,30,-50,-27,-34,475,460,466,472,458,468,725,723,1253,1253,1253,1246,29992,1239,1239,1231,1231,1231,1206,1195,1109,1102,29983,29984,29984,29985]} 1. e4 {[%emt 0:00:02]} c5 {[%emt 0:00:01]} 2. Nf3 {[%emt 0:00:02]} d6 {[%emt 0:00:01]} 3. d4 {[%emt 0:00:02]} cxd4 {[%emt 0:00:01]} 4. Nxd4 {[%emt 0:00:02]} Nf6 {[%emt 0:00:01]} 5. Nc3 {[%emt 0:00:01]} a6 {[%emt 0:00:02]} 6. Bg5 {[%emt 0:00:04]} Nbd7 {[%emt 0:00:03]} 7. Bc4 {[%emt 0:00:03]} Qb6 {[%emt 0:00:02] B94: Sicilian Najdorf: 6 Bg5 Nbd7.} 8. Bb3 {[%emt 0:00:04]} e6 {[%emt 0:00:02]} 9. Qd2 {[%emt 0:00:06]} Be7 {[%emt 0:00:02] The position is equal.} 10. O-O-O {[%emt 0:00:11]} Nc5 {[%emt 0:00:02]} 11. f3 {[%emt 0:00:09] 11.Rhe1 is more advanced technology.} Qc7 {[%emt 0:00:03]} 12. g4 {[%emt 0:00:06]} b5 {[%emt 0:00:07] Black wants to play ...b4.} 13. a3 {[%emt 0:00:34]} Bd7 {[%emt 0:01:03]} 14. Kb1 {[%emt 0:00:11]} Qb7 {[%emt 0:00:11]} 15. Qe2 {[%emt 0:01:10] [#]} b4 $146 {[%emt 0:02:32]} (15... O-O $15) ({Predecessor:} 15... O-O 16. e5 dxe5 17. Qxe5 Nxb3 18. Nxb3 Be8 19. Rhg1 Nd7 {½-½ (19) Fischer,W (2445)-Dimitrov,M (2421) ICCF email 2017}) 16. axb4 $11 {[%emt 0:00:21]} Qxb4 {[%emt 0:00:02] [#]} 17. e5 {[%emt 0:02:29]} (17. Nf5 $1 $11 exf5 18. exf5) 17... dxe5 $15 {[%emt 0:00:35]} 18. Qxe5 {[%emt 0:00:02][%cal Od4f5] And now Nf5! would win.} a5 $2 {[%emt 0:00:19][%mdl 8192] [#] Loses the game.} (18... Nxb3 $15 {stays ahead.} 19. Nxb3 Bc6) 19. Nf5 $1 $18 {[%emt 0:06:56][%mdl 512]} exf5 {[%emt 0:00:24]} 20. Nd5 {[%emt 0:00:26]} Nxd5 {[%emt 0:00:19]} 21. Qxd5 {[%emt 0:01:09]} Bxg5 {[%emt 0:09:29]} (21... O-O $142 22. Bxe7 Be6 23. Qxc5 Qxc5 24. Bxc5 Rfe8) 22. Qxa8+ {[%emt 0:00:11]} Ke7 {[%emt 0:02:23]} 23. Rhe1+ {[%emt 0:02:20]} Kf6 {[%emt 0:01:12]} 24. Qxh8 {[%emt 0:01:43] Intending Qd8+ and mate.} Kg6 {[%emt 0:01:01] [#]} 25. h4 {[%emt 0:02:02]} (25. Bxf7+ $142 $1 Kh6 26. Rd6+ Ne6 27. Rdxe6+ Bf6 28. Rxf6+ Kg5 29. Qxg7+ Kf4 30. Qh6+ Kxf3 31. Qe3+ Kxg4 32. Qg3#) 25... Nxb3 {[%emt 0:01:46]} 26. hxg5 {[%emt 0:01:07] Threatening mate with Rh1.} ({Weaker is} 26. gxf5+ Bxf5 27. Rg1 (27. hxg5 Nd2+ 28. Rxd2 Qxd2 $14) 27... Qxh4 $16) 26... Nd2+ {[%emt 0:02:28] [#]} 27. Rxd2 $1 {[%emt 0:00:04]} Qxd2 {[%emt 0:00:01]} 28. Rh1 {[%emt 0:00:01]} Qxg5 {[%emt 0:00:17]} 29. Rxh7 {[%emt 0:01:52][%csl Gh7][%cal Rh8g7]} Kf6 {[%emt 0:00:45]} 30. Qd8+ {[%emt 0:01:18]} Kg6 {[%emt 0:00:02] [#]} 31. Rxg7+ $3 {[%emt 0:00:02][%mdl 512] Weighted Error Value: White=0.12 (very precise) /Black=1.02} 1-0

[Event "Chinese League Div-A Rapid 2022"]
[Site "Fuling,Chongqing"]
[Date "2022.09.16"]
[Round "9.6"]
[White "Zhang, Di"]
[Black "Liu, Yan"]
[Result "1-0"]
[ECO "B20"]
[WhiteElo "2108"]
[BlackElo "2530"]
[Annotator "ChessBase"]
[PlyCount "205"]
[EventDate "2022.09.07"]
[EventType "team-tourn"]
[EventCountry "CHN"]
[SourceTitle "playchess.com"]
[Source "ChessBase"]
[SourceQuality "1"]
[TimeControl "1500+10"]

1. e4 {[%emt 0:00:02]} c5 {[%emt 0:00:06]} 2. g3 {[%emt 0:00:02]} Nc6 {[%emt 0:00:21]} 3. Bg2 {[%emt 0:00:02]} g6 {[%emt 0:00:12]} 4. c3 {[%emt 0:00:02]} Bg7 {[%emt 0:00:04]} 5. Ne2 {[%emt 0:00:01]} e5 {[%emt 0:00:14]} 6. d3 {[%emt 0:00:02]} Nge7 {[%emt 0:00:31]} 7. Be3 {[%emt 0:00:02]} d6 {[%emt 0:00:40]} 8. O-O {[%emt 0:00:06]} O-O {[%emt 0:00:11]} 9. f4 {[%emt 0:00:09]} exf4 {[%emt 0:02:45]} 10. Nxf4 {[%emt 0:00:05]} b5 {[%emt 0:00:47]} 11. a3 {[%emt 0:00:03]} a5 {[%emt 0:00:49]} 12. Nd2 {[%emt 0:00:02]} Ba6 {[%emt 0:01:00]} 13. Nf3 {[%emt 0:05:02]} b4 {[%emt 0:00:36]} 14. axb4 {[%emt 0:01:18]} axb4 {[%emt 0:00:05]} 15. Ne2 {[%emt 0:00:19]} Bb7 {[%emt 0:01:31]} 16. Rb1 {[%emt 0:00:31]} h6 {[%emt 0:01:32]} 17. d4 {[%emt 0:01:54]} cxd4 {[%emt 0:00:14]} 18. cxd4 {[%emt 0:00:12]} Na5 {[%emt 0:01:41]} 19. d5 {[%emt 0:00:55]} Nc4 {[%emt 0:03:15]} 20. Bd4 {[%emt 0:00:01]} Bxd4+ {[%emt 0:00:07]} 21. Qxd4 {[%emt 0:00:01]} Qb6 {[%emt 0:00:03]} 22. Rfc1 {[%emt 0:00:23]} Qxd4+ {[%emt 0:00:15]} 23. Nexd4 {[%emt 0:00:05]} Rfc8 {[%emt 0:02:40]} 24. Bh3 {[%emt 0:00:20]} Rc5 {[%emt 0:01:25]} 25. Nb3 {[%emt 0:01:55]} Rc7 {[%emt 0:00:03]} 26. Rc2 {[%emt 0:05:11]} f5 {[%emt 0:04:48]} 27. Rbc1 {[%emt 0:00:01]} fxe4 {[%emt 0:00:01]} 28. Be6+ {[%emt 0:00:01]} Kh8 {[%emt 0:00:10]} 29. Nfd4 {[%emt 0:07:07]} Bxd5 {[%emt 0:01:36]} 30. Bxd5 {[%emt 0:00:02]} Nxd5 {[%emt 0:00:02]} 31. Rxc4 {[%emt 0:00:06]} Rxc4 {[%emt 0:00:11]} 32. Rxc4 {[%emt 0:00:01]} Ra2 {[%emt 0:00:10]} 33. Rc2 {[%emt 0:00:41]} Ne3 {[%emt 0:00:43]} 34. Re2 {[%emt 0:00:45]} Nc4 {[%emt 0:00:02]} 35. Rxe4 {[%emt 0:00:02]} Rxb2 {[%emt 0:00:08]} 36. Re7 {[%emt 0:00:30]} Nd2 {[%emt 0:00:45]} 37. Re3 {[%emt 0:01:44]} Nc4 {[%emt 0:00:21]} 38. Re8+ {[%emt 0:00:19]} Kg7 {[%emt 0:00:03]} 39. Rb8 {[%emt 0:00:03]} Ne3 {[%emt 0:00:21]} 40. Re8 {[%emt 0:00:37]} Rb1+ {[%emt 0:00:43]} 41. Kf2 {[%emt 0:00:01]} Ng4+ {[%emt 0:00:01]} 42. Kg2 {[%emt 0:00:10]} Ne5 {[%emt 0:00:13]} 43. Re7+ {[%emt 0:00:13]} Kf8 {[%emt 0:00:25]} 44. Rb7 {[%emt 0:00:37]} Rb2+ {[%emt 0:00:06]} 45. Kg1 {[%emt 0:00:13]} Rb1+ {[%emt 0:00:05]} 46. Kf2 {[%emt 0:00:03]} Rb2+ {[%emt 0:00:10]} 47. Ke3 {[%emt 0:00:06]} Rxh2 {[%emt 0:00:09]} 48. Rxb4 {[%emt 0:00:16]} h5 {[%emt 0:00:27]} 49. Rb7 {[%emt 0:00:24]} h4 {[%emt 0:00:06]} 50. gxh4 {[%emt 0:00:04]} Rxh4 {[%emt 0:00:02]} 51. Ne6+ {[%emt 0:00:05]} Kg8 {[%emt 0:00:15]} 52. Nbd4 {[%emt 0:00:15]} Nc4+ {[%emt 0:00:10]} 53. Kf2 {[%emt 0:00:02]} Ne5 {[%emt 0:00:09]} 54. Kg3 {[%emt 0:00:27]} Rg4+ {[%emt 0:00:08]} 55. Kf2 {[%emt 0:00:02]} Rh4 {[%emt 0:00:03]} 56. Ne2 {[%emt 0:00:21]} Nd3+ {[%emt 0:00:31]} 57. Kf3 {[%emt 0:00:11]} Nc5 {[%emt 0:00:08]} 58. Rb8+ {[%emt 0:00:05]} Kf7 {[%emt 0:00:05]} 59. N6f4 {[%emt 0:00:07]} g5 {[%emt 0:00:07]} 60. Ng2 {[%emt 0:00:09]} Ra4 {[%emt 0:00:12]} 61. Ng3 {[%emt 0:00:18]} Ke6 {[%emt 0:00:15]} 62. Re8+ {[%emt 0:00:09]} Kf7 {[%emt 0:00:03]} 63. Rc8 {[%emt 0:00:04]} Ke6 {[%emt 0:00:04]} 64. Ne3 {[%emt 0:00:03]} Rf4+ {[%emt 0:00:04]} 65. Ke2 {[%emt 0:00:04]} Ra4 {[%emt 0:00:26]} 66. Rg8 {[%emt 0:00:09]} Ne4 {[%emt 0:00:21]} 67. Re8+ {[%emt 0:00:16]} Kd7 {[%emt 0:00:04]} 68. Rxe4 {[%emt 0:00:03]} Rxe4 {[%emt 0:00:01]} 69. Nxe4 {[%emt 0:00:01]} d5 {[%emt 0:00:01]} 70. Nf6+ {[%emt 0:00:12]} Ke6 {[%emt 0:00:04]} 71. Neg4 {[%emt 0:00:16]} Kf5 {[%emt 0:00:11]} 72. Ke3 {[%emt 0:00:03]} d4+ {[%emt 0:00:02]} 73. Kxd4 {[%emt 0:00:01]} Kf4 {[%emt 0:00:01]} 74. Kd5 {[%emt 0:00:16]} Kf5 {[%emt 0:00:03]} 75. Kd6 {[%emt 0:00:02]} Kf4 {[%emt 0:00:02]} 76. Ke6 {[%emt 0:00:01]} Kf3 {[%emt 0:00:03]} 77. Kf5 {[%emt 0:00:03]} Ke2 {[%emt 0:00:25]} 78. Ke4 {[%emt 0:00:04]} Kd2 {[%emt 0:00:01]} 79. Nd5 {[%emt 0:00:08]} Kc2 {[%emt 0:00:08]} 80. Ke3 {[%emt 0:00:05]} Kb3 {[%emt 0:00:15]} 81. Kd3 {[%emt 0:00:01]} Ka4 {[%emt 0:00:10]} 82. Kc4 {[%emt 0:00:19]} Ka5 {[%emt 0:00:16]} 83. Nc3 {[%emt 0:00:03]} Ka6 {[%emt 0:00:10]} 84. Kd5 {[%emt 0:00:29]} Kb6 {[%emt 0:00:11]} 85. Kd6 {[%emt 0:00:01]} Kb7 {[%emt 0:00:14]} 86. Nd5 {[%emt 0:00:06]} Ka6 {[%emt 0:00:03]} 87. Kc5 {[%emt 0:00:02]} Ka5 {[%emt 0:00:02]} 88. Nb6 {[%emt 0:00:01]} Ka6 {[%emt 0:00:02]} 89. Nc4 {[%emt 0:00:02]} Kb7 {[%emt 0:00:10]} 90. Kd6 {[%emt 0:00:01]} Kc8 {[%emt 0:00:19]} 91. Kc6 {[%emt 0:00:19]} Kd8 {[%emt 0:00:06]} 92. Kd6 {[%emt 0:00:04]} Kc8 {[%emt 0:00:01]} 93. Na5 {[%emt 0:00:08]} Kd8 {[%emt 0:00:26]} 94. Nb7+ {[%emt 0:00:04]} Kc8 {[%emt 0:00:43]} 95. Kc6 {[%emt 0:00:05]} Kb8 {[%emt 0:00:01]} 96. Nd6 {[%emt 0:00:01]} Ka8 {[%emt 0:00:12]} 97. Kb5 {[%emt 0:00:03]} Ka7 {[%emt 0:00:07]} 98. Ka5 {[%emt 0:00:01]} Ka8 {[%emt 0:00:08]} 99. Ka6 {[%emt 0:00:02]} Kb8 {[%emt 0:00:01]} 100. Kb6 {[%emt 0:00:02]} Ka8 {[%emt 0:00:01]} 101. Ne5 {[%emt 0:00:33]} g4 {[%emt 0:00:01]} 102. Nc6 {[%emt 0:00:02]} g3 {[%emt 0:00:02]} 103. Nb5 {[%emt 0:00:01]} 1-0